bitfinex-derivatives/quotes_BTCF0:USTF0_20210404
["timestamp","ask_amount","ask_price","bid_price","bid_amount"]
[1617516641447,9.86425768,57382.0,57381.0,0.14547233]
[1617516641848,9.86425768,57382.0,57381.0,0.10397879]
[1617516642951,3.86425768,57382.0,57381.0,0.14547233]
[1617516643151,9.86425768,57382.0,57381.0,0.11149354]
[1617516643551,9.86425768,57382.0,57381.0,0.14547233]
[1617516643751,9.86425768,57382.0,57381.0,0.07547233]
[1617516643951,10.56936077,57382.0,57381.0,0.07547233]
[1617516644851,10.56936077,57382.0,57381.0,0.14547233]
[1617516650560,10.56936077,57382.0,57381.0,0.14445106]
[1617516660673,6.95750736,57382.0,57381.0,0.14342968]
[1617516660871,13.01050736,57382.0,57325.0,0.4929]
[1617516661072,1.5,57380.0,57325.0,0.4929]
[1617516661271,0.2,57379.0,57325.0,0.4929]
[1617516661472,3.4417,57329.0,57325.0,0.4929]
[1617516661673,1.0,57326.0,57325.0,0.4929]
[1617516661874,4.7052,57326.0,57325.0,0.4929]
[1617516662474,4.81245655,57326.0,57325.0,0.4929]
[1617516664879,1.10725655,57326.0,57325.0,0.4929]
[1617516665981,0.10725655,57326.0,57325.0,0.4929]
[1617516666178,1.10725655,57326.0,57325.0,0.4929]
[1617516666379,0.10725655,57326.0,57325.0,0.60015655]
[1617516668881,1.10725655,57326.0,57325.0,0.60015655]
[1617516669684,1.10725655,57326.0,57325.0,0.4929]
[1617516670682,4.79795655,57326.0,57325.0,0.4929]
[1617516675587,1.10725655,57326.0,57325.0,0.4929]
[1617516678190,3.85355655,57326.0,57325.0,0.4929]
[1617516689502,2.85355655,57326.0,57325.0,0.4929]
[1617516689905,8.85355655,57326.0,57325.0,0.4929]
[1617516691910,2.85355655,57326.0,57325.0,0.4929]
[1617516692107,3.85355655,57326.0,57325.0,0.4929]
[1617516692608,3.85355655,57326.0,57300.0,0.035]
[1617516692807,3.02088655,57326.0,57300.0,0.035]
[1617516693008,9.02088655,57326.0,57300.0,0.035]
[1617516693208,1.0,57301.0,57300.0,0.035]
[1617516693610,4.6877,57301.0,57300.0,0.035]
[1617516694710,4.79495655,57301.0,57300.0,0.035]
[1617516704821,3.79495655,57301.0,57300.0,0.035]
[1617516705219,9.79495655,57301.0,57300.0,0.035]
[1617516707322,3.79495655,57301.0,57300.0,0.035]
[1617516707520,9.79495655,57301.0,57300.0,0.035]
[1617516707922,9.79495655,57301.0,57289.0,0.4817]
[1617516708321,1.0,57290.0,57289.0,0.4817]
[1617516708521,1.11222,57290.0,57289.0,0.4817]
[1617516708722,1.21947655,57290.0,57289.0,0.4817]
[1617516709121,1.18447655,57290.0,57289.0,0.4817]
[1617516709924,3.77037655,57290.0,57289.0,0.4817]
[1617516710627,2.77037655,57290.0,57289.0,0.4817]
[1617516711023,3.77037655,57290.0,57289.0,0.4817]
[1617516713228,2.77037655,57290.0,57289.0,0.4817]
[1617516713627,3.77037655,57290.0,57289.0,0.4817]
[1617516714829,1.18447655,57290.0,57289.0,0.4817]
[1617516715032,1.10725655,57290.0,57289.0,0.4817]
[1617516715832,0.10725655,57290.0,57289.0,0.4817]
[1617516716033,1.10725655,57290.0,57289.0,0.4817]
[1617516717435,0.10725655,57290.0,57289.0,0.4817]
[1617516717834,8.76822655,57290.0,57289.0,0.4817]
[1617516718234,8.76822655,57290.0,57256.0,0.07]
[1617516718435,7.74182655,57290.0,57256.0,0.07]
[1617516718635,1.0,57258.0,57256.0,0.07]
[1617516718836,4.00539655,57257.0,57256.0,0.07]
[1617516719036,5.00539655,57257.0,57256.0,0.07]
[1617516721740,1.10725655,57257.0,57256.0,0.07]
[1617516722538,1.0,57262.0,57256.0,0.07]
[1617516722741,0.55305312,57301.0,57256.0,0.07]
[1617516722742,1.0,57269.0,57261.0,2.9324]
[1617516722938,1.10725655,57269.0,57261.0,3.09215655]
[1617516723139,1.10725655,57269.0,57261.0,3.03965655]
[1617516723338,0.10725655,57269.0,57261.0,3.03965655]
[1617516723538,1.0,57272.0,57261.0,3.03965655]
[1617516723739,1.0,57279.0,57261.0,0.10725655]
[1617516723939,1.0,57281.0,57261.0,0.10725655]
[1617516724140,1.0,57281.0,57269.0,2.726]
[1617516724338,1.0,57285.0,57269.0,2.83012]
[1617516724539,1.0,57286.0,57269.0,2.83012]
[1617516724940,1.0,57287.0,57281.0,0.10725655]
[1617516725139,1.0,57285.0,57281.0,0.26447655]
[1617516725540,0.49479695,57306.0,57281.0,0.26447655]
[1617516725739,1.0,57282.0,57281.0,0.26447655]
[1617516726139,1.0,57285.0,57281.0,0.26447655]
[1617516726340,0.17638925,57308.0,57281.0,0.26447655]
[1617516726341,4.0858,57282.0,57281.0,0.26447655]
[1617516726939,4.19305655,57282.0,57281.0,0.26447655]
[1617516728743,3.19305655,57282.0,57281.0,0.26447655]
[1617516729342,4.19305655,57282.0,57281.0,0.26447655]
[1617516730546,4.19305655,57282.0,57269.0,0.10412]
[1617516730744,4.19305655,57282.0,57257.0,0.4554]
[1617516730946,3.0858,57282.0,57274.0,0.10725655]
[1617516731146,1.0,57275.0,57274.0,0.10725655]
[1617516731347,3.0858,57282.0,57274.0,0.10725655]
[1617516731546,1.0,57275.0,57274.0,0.10725655]
[1617516731946,1.0,57276.0,57274.0,0.10725655]
[1617516732747,1.0,57279.0,57274.0,0.10725655]
[1617516732946,0.10725655,57275.0,57274.0,0.10725655]
[1617516733348,1.10725655,57275.0,57274.0,0.10725655]
[1617516734147,4.11238655,57275.0,57257.0,0.4554]
[1617516734948,0.10725655,57258.0,57257.0,0.4554]
[1617516735148,0.21239655,57258.0,57257.0,0.4554]
[1617516735548,1.21239655,57258.0,57257.0,0.4554]
[1617516736449,0.21239655,57258.0,57257.0,0.4554]
[1617516736650,0.10725655,57258.0,57257.0,0.4554]
[1617516736849,0.10725655,57258.0,57257.0,0.56265655]
[1617516737049,1.10725655,57258.0,57257.0,0.56265655]
[1617516738251,0.10725655,57258.0,57257.0,0.56265655]
[1617516739651,0.10725655,57258.0,57257.0,0.4554]
[1617516739852,4.22235655,57258.0,57257.0,0.4554]
[1617516742054,3.22235655,57258.0,57257.0,0.4554]
[1617516742255,0.10725655,57258.0,57257.0,0.4554]
[1617516742455,1.10725655,57258.0,57257.0,0.4554]
[1617516743459,0.10725655,57258.0,57257.0,0.4554]
[1617516743657,1.10725655,57258.0,57257.0,0.4554]
[1617516744258,0.10725655,57258.0,57257.0,0.4554]
[1617516745058,0.10725655,57258.0,57257.0,0.56265655]
[1617516746458,1.10725655,57258.0,57257.0,0.56265655]
[1617516746860,0.10725655,57258.0,57257.0,0.56265655]
[1617516748262,2.7118,57266.0,57257.0,0.56265655]
[1617516749062,2.7118,57266.0,57265.0,0.10725655]
[1617516749262,0.10725655,57268.0,57265.0,0.10725655]
[1617516750269,1.0,57266.0,57265.0,0.10725655]
[1617516750568,0.10725655,57268.0,57265.0,0.10725655]
[1617516751369,1.0,57267.0,57265.0,0.10725655]
[1617516752069,1.10725655,57268.0,57265.0,0.10725655]
[1617516752269,1.0,57266.0,57265.0,0.10725655]
[1617516752670,0.10725655,57268.0,57265.0,0.10725655]
[1617516753270,1.0,57266.0,57257.0,0.4554]
[1617516753471,2.8191,57258.0,57257.0,0.4554]
[1617516754371,0.10725655,57268.0,57257.0,0.4554]
[1617516754771,0.10725655,57268.0,57257.0,0.60571]
[1617516754971,0.10725655,57268.0,57267.0,0.10725655]
[1617516755974,1.10725655,57268.0,57267.0,0.10725655]
[1617516757174,0.10725655,57268.0,57267.0,0.10725655]
[1617516757373,1.0,57271.0,57267.0,0.10725655]
[1617516757573,0.17750299,57283.0,57267.0,0.10725655]
[1617516757773,0.17750299,57283.0,57270.0,2.6504]
[1617516757975,1.0,57286.0,57270.0,2.6504]
[1617516758173,1.0,57287.0,57270.0,2.6504]
[1617516758574,0.49779609,57291.0,57270.0,2.6504]
[1617516758774,0.49793984,57293.0,57270.0,2.6504]
[1617516758975,0.49793984,57293.0,57286.0,0.10725655]
[1617516759174,1.49806158,57295.0,57286.0,0.21703655]
[1617516759575,1.0,57294.0,57286.0,0.21703655]
[1617516759976,1.0,57288.0,57286.0,0.21703655]
[1617516761076,0.10725655,57287.0,57286.0,0.21703655]
[1617516761979,1.10725655,57287.0,57286.0,0.21703655]
[1617516763082,0.10725655,57287.0,57286.0,0.21703655]
[1617516767684,3.40585655,57287.0,57286.0,0.21703655]
[1617516767885,3.40585655,57287.0,57286.0,0.10725655]
[1617516768085,4.54398655,57287.0,57286.0,0.10725655]
[1617516768486,4.54398655,57287.0,57267.0,0.4874]
[1617516769088,1.0,57278.0,57276.0,0.10725655]
[1617516770991,1.0,57277.0,57276.0,0.10725655]
[1617516771191,1.10725655,57277.0,57276.0,0.10725655]
[1617516772393,0.10725655,57277.0,57276.0,0.10725655]
[1617516772593,1.10725655,57277.0,57276.0,0.10725655]
[1617516772793,0.10725655,57277.0,57276.0,0.10725655]
[1617516774496,0.22958655,57277.0,57276.0,0.10725655]
[1617516774699,1.22958655,57277.0,57276.0,0.10725655]
[1617516776300,0.22958655,57277.0,57276.0,0.10725655]
[1617516776501,1.22958655,57277.0,57276.0,0.10725655]
[1617516778303,0.22958655,57277.0,57276.0,0.10725655]
[1617516778504,0.10725655,57277.0,57276.0,0.10725655]
[1617516781108,1.49761935,57294.0,57276.0,0.10725655]
[1617516781109,1.0,57294.0,57276.0,0.10725655]
[1617516781518,0.17849613,57293.0,57276.0,0.10725655]
[1617516781916,1.0,57294.0,57276.0,0.10725655]
[1617516782311,0.49755222,57294.0,57276.0,0.10725655]
[1617516782612,1.0,57292.0,57276.0,0.10725655]
[1617516782911,1.0,57289.0,57276.0,0.10725655]
[1617516783110,1.0,57289.0,57288.0,0.10725655]
[1617516783310,1.0,57289.0,57288.0,0.23228655]
[1617516784711,1.0,57290.0,57288.0,0.23228655]
[1617516785111,0.10725655,57289.0,57288.0,0.23228655]
[1617516787715,0.10725655,57289.0,57288.0,0.12503]
[1617516787916,1.10725655,57289.0,57288.0,0.12503]
[1617516788516,0.10725655,57289.0,57288.0,0.12503]
[1617516788715,0.10725655,57289.0,57275.0,3.3003]
[1617516789217,1.0,57292.0,57286.0,0.27332655]
[1617516789417,1.0,57295.0,57286.0,0.27332655]
[1617516789817,1.0,57293.0,57286.0,0.27332655]
[1617516790217,0.49783236,57301.0,57286.0,0.10725655]
[1617516790218,1.0,57290.0,57286.0,0.10725655]
[1617516791217,0.10725655,57287.0,57286.0,0.10725655]
[1617516794821,1.10725655,57287.0,57286.0,0.10725655]
[1617516795222,1.21037655,57287.0,57276.0,0.10725655]
[1617516795835,1.0,57277.0,57276.0,0.10725655]
[1617516796039,4.7191,57277.0,57268.0,0.4663]
[1617516796264,3.7191,57277.0,57268.0,0.4663]
[1617516796441,1.0,57269.0,57268.0,0.4663]
[1617516796648,1.13281,57269.0,57268.0,0.4663]
[1617516797229,1.24006655,57269.0,57268.0,0.4663]
[1617516805035,0.24006655,57269.0,57268.0,0.4663]
[1617516805637,0.10725655,57269.0,57268.0,0.4663]
[1617516806038,1.10725655,57269.0,57268.0,0.4663]
[1617516807338,1.10725655,57269.0,57268.0,0.57355655]
[1617516807940,0.10725655,57269.0,57268.0,0.57355655]
[1617516808640,0.49558055,57285.0,57269.0,2.8225]
[1617516808840,1.0,57287.0,57269.0,2.8225]
[1617516809040,1.0,57288.0,57269.0,2.8225]
[1617516809241,1.0,57288.0,57287.0,0.10725655]
[1617516809441,1.0,57289.0,57287.0,0.23894655]
[1617516809642,1.0,57290.0,57287.0,0.23894655]
[1617516811249,0.10725655,57288.0,57287.0,0.23894655]
[1617516814950,0.49644115,57296.0,57287.0,0.23894655]
[1617516815149,1.0,57297.0,57287.0,0.23894655]
[1617516815349,1.0,57297.0,57295.0,0.10725655]
[1617516816253,1.49639543,57297.0,57295.0,0.10725655]
[1617516816452,1.49639543,57297.0,57288.0,3.7034]
[1617516816853,0.49639543,57297.0,57288.0,3.7034]
[1617516817052,1.0,57295.0,57288.0,3.7034]
[1617516817251,0.49639543,57297.0,57288.0,3.81065655]
[1617516817252,0.10725655,57289.0,57288.0,3.81065655]
[1617516840176,0.49519987,57301.0,57288.0,0.27611655]
[1617516840376,1.0,57312.0,57303.0,3.1825]
[1617516840377,0.49522605,57304.0,57303.0,3.1825]
[1617516840573,0.49522605,57304.0,57303.0,3.29008]
[1617516840772,0.49509701,57305.0,57303.0,3.29008]
[1617516841174,1.49495225,57306.0,57303.0,0.10758]
[1617516841373,0.10725655,57304.0,57303.0,0.10758]
[1617516841573,0.10725655,57304.0,57303.0,3.2252]
[1617516842276,0.60198284,57304.0,57303.0,3.2252]
[1617516843876,1.60198284,57304.0,57303.0,3.2252]
[1617516844276,0.60198284,57304.0,57303.0,3.2252]
[1617516844478,1.76688284,57304.0,57283.0,0.1281]
[1617516844887,0.49498355,57301.0,57283.0,0.1281]
[1617516845082,1.0,57284.0,57283.0,0.1281]
[1617516845286,1.15638,57284.0,57283.0,0.1281]
[1617516845480,3.1794,57282.0,57281.0,0.4957]
[1617516845679,1.26363655,57284.0,57281.0,0.4957]
[1617516846278,3.1787,57283.0,57281.0,0.4957]
[1617516846478,1.0,57282.0,57281.0,0.4957]
[1617516858591,1.0,57282.0,57281.0,3.5671]
[1617516859494,1.0,57282.0,57281.0,0.4957]
[1617516860592,1.17720714,57282.0,57281.0,0.4957]
[1617516867301,1.0,57282.0,57281.0,0.4957]
[1617516877925,6.0,57282.0,57281.0,0.4957]
[1617516878145,9.9599,57282.0,57281.0,0.4957]
[1617516878742,10.45336268,57282.0,57281.0,0.4957]
[1617516879125,10.25336268,57282.0,57281.0,0.4957]
[1617516879321,10.45336268,57282.0,57281.0,0.4957]
[1617516879512,10.45336268,57282.0,57281.0,0.49467727]
[1617516880915,4.45336268,57282.0,57281.0,0.49467727]
[1617516881116,10.45336268,57282.0,57281.0,0.49467727]
[1617516883622,10.45336268,57282.0,57281.0,0.48007727]
[1617516884822,11.00480393,57282.0,57281.0,0.48007727]
[1617516885223,10.45336268,57282.0,57281.0,0.48007727]
[1617516888227,10.45336268,57282.0,57249.0,0.07]
[1617516888627,0.49180591,57276.0,57249.0,0.07]
[1617516889630,0.10725655,57250.0,57249.0,0.07]
[1617516890329,0.10725655,57250.0,57249.0,3.4211]
[1617516893936,0.10725655,57250.0,57249.0,3.3511]
[1617516894337,0.10725655,57250.0,57249.0,3.4211]
[1617516899648,1.0,57255.0,57249.0,3.65238655]
[1617516900048,0.10725655,57262.0,57249.0,3.65238655]
[1617516900049,0.10725655,57262.0,57249.0,4.65238655]
[1617516900249,0.49161782,57276.0,57249.0,4.65238655]
[1617516900250,0.49161782,57276.0,57250.0,1.0]
[1617516900450,1.0,57279.0,57250.0,1.0]
[1617516900648,1.0,57280.0,57251.0,1.0]
[1617516901048,1.0,57279.0,57250.0,1.0]
[1617516901449,1.0,57274.0,57249.0,3.65238655]
[1617516901648,1.0,57274.0,57262.0,0.10725655]
[1617516901850,1.0,57279.0,57262.0,0.10725655]
[1617516902049,1.0,57279.0,57262.0,0.23269655]
[1617516902250,2.7223,57276.0,57265.0,3.564]
[1617516903852,0.10725655,57266.0,57265.0,3.564]
[1617516912862,0.49635247,57293.0,57265.0,3.564]
[1617516913063,1.0,57292.0,57265.0,3.564]
[1617516913264,1.0,57290.0,57265.0,3.564]
[1617516913663,3.7244,57280.0,57263.0,4.0417]
[1617516913863,3.7244,57280.0,57272.0,0.10725655]
[1617516915866,0.10725655,57273.0,57272.0,0.10725655]
[1617516922372,0.10725655,57273.0,57268.0,3.0463]
[1617516924372,0.24994655,57273.0,57268.0,3.0463]
[1617516926074,0.10725655,57273.0,57268.0,3.0463]
[1617516929878,1.0,57271.0,57263.0,0.4812]
[1617516930078,2.8902,57264.0,57263.0,0.4812]
[1617516930278,3.01157,57264.0,57263.0,0.4812]
[1617516931881,3.11882655,57264.0,57263.0,0.4812]
[1617516932081,0.22862655,57264.0,57263.0,0.4812]
[1617516933985,1.22862655,57264.0,57263.0,0.4812]
[1617516934984,4.17102655,57264.0,57263.0,0.4812]
[1617516943295,1.22862655,57264.0,57263.0,0.4812]
[1617516944296,0.22862655,57264.0,57263.0,0.4812]
[1617516944497,1.10725655,57264.0,57263.0,0.4812]
[1617516944897,0.10725655,57264.0,57263.0,0.4812]
[1617516945901,2.89435655,57264.0,57263.0,0.4812]
[1617516946301,3.89435655,57264.0,57263.0,0.4812]
[1617516946499,1.10725655,57264.0,57263.0,0.4812]
[1617516946700,0.10725655,57264.0,57263.0,0.6118]
[1617516948100,0.10725655,57264.0,57263.0,0.71905655]
[1617516949600,0.10725655,57264.0,57263.0,0.58845655]
[1617516950000,0.10725655,57264.0,57263.0,0.4812]
[1617516950604,3.00325655,57264.0,57263.0,0.4812]
[1617516950802,4.00325655,57264.0,57263.0,0.4812]
[1617516952604,0.10725655,57264.0,57263.0,0.4812]
[1617516953205,1.10725655,57264.0,57263.0,0.4812]
[1617516954007,4.16395655,57264.0,57263.0,0.4812]
[1617516954607,1.10725655,57264.0,57263.0,0.4812]
[1617516955607,0.10725655,57264.0,57263.0,0.4812]
[1617516958113,1.10725655,57264.0,57263.0,0.4812]
[1617516959911,3.89955655,57264.0,57263.0,0.4812]
[1617516962416,2.89955655,57264.0,57263.0,0.4812]
[1617516962616,3.89955655,57264.0,57263.0,0.4812]
[1617516966320,2.89955655,57264.0,57263.0,0.4812]
[1617516966621,3.89955655,57264.0,57263.0,0.4812]
[1617516973331,0.022468,57260.0,57246.0,0.07]
[1617516973532,0.170428,57260.0,57246.0,0.07]
[1617516973732,1.0,57247.0,57246.0,0.07]
[1617516973932,1.15812,57247.0,57246.0,0.07]
[1617516974133,1.26537655,57247.0,57246.0,0.07]
[1617516975239,4.74427655,57247.0,57246.0,0.07]
[1617516976336,3.74427655,57247.0,57246.0,0.07]
[1617516976936,4.74427655,57247.0,57246.0,0.07]
[1617516977138,3.74427655,57247.0,57246.0,0.07]
[1617516979938,3.74427655,57247.0,57232.0,0.23535655]
[1617516980139,0.10725655,57238.0,57232.0,0.23535655]
[1617516980341,0.03725655,57238.0,57232.0,0.23535655]
[1617516982238,2.91525655,57238.0,57232.0,0.23535655]
[1617516985140,2.91525655,57238.0,57232.0,0.10725655]
[1617516985342,0.03725655,57238.0,57232.0,0.10725655]
[1617516985540,0.03725655,57238.0,57237.0,3.8687]
[1617516985751,0.03725655,57238.0,57237.0,4.02121]
[1617516986179,1.0,57251.0,57237.0,4.07281]
[1617516986379,0.10725655,57252.0,57237.0,0.66031]
[1617516986946,0.10725655,57252.0,57247.0,2.6158]
[1617516988344,0.10725655,57252.0,57251.0,0.10725655]
[1617516989645,0.10725655,57252.0,57251.0,0.25334655]
[1617516990348,3.02045655,57252.0,57251.0,0.25334655]
[1617516992147,0.10725655,57252.0,57251.0,0.25334655]
[1617516993749,3.53065655,57252.0,57251.0,0.25334655]
[1617516995151,3.53065655,57252.0,57251.0,0.10725655]
[1617516995951,0.10725655,57252.0,57251.0,0.10725655]
[1617516996753,0.10725655,57252.0,57251.0,0.21950655]
[1617516999258,0.10725655,57252.0,57251.0,0.10725655]
[1617517002062,3.64695655,57252.0,57251.0,0.10725655]
[1617517003963,0.10725655,57252.0,57251.0,0.10725655]
[1617517005265,1.10725655,57252.0,57251.0,0.10725655]
[1617517006569,0.10725655,57252.0,57251.0,0.10725655]
[1617517009772,0.10725655,57252.0,57237.0,4.1272]
[1617517009972,1.10725655,57252.0,57237.0,0.4562]
[1617517010374,0.10725655,57238.0,57237.0,0.4562]
[1617517010573,0.23138655,57238.0,57237.0,0.4562]
[1617517018383,0.10725655,57238.0,57237.0,0.4562]
[1617517025292,2.84695655,57238.0,57237.0,0.4562]
[1617517043212,3.84695655,57238.0,57237.0,0.4562]
[1617517043412,2.84695655,57238.0,57237.0,0.4562]
[1617517045413,3.84695655,57238.0,57237.0,0.4562]
[1617517049817,3.84695655,57238.0,57229.0,0.4646]
[1617517050417,1.0,57231.0,57229.0,0.4646]
[1617517050617,0.10725655,57230.0,57229.0,0.4646]
[1617517054323,3.54485655,57230.0,57229.0,0.4646]
[1617517056322,4.54485655,57230.0,57229.0,0.4646]
[1617517057725,3.54485655,57230.0,57229.0,0.4646]
[1617517057926,4.54485655,57230.0,57229.0,0.4646]
[1617517061633,4.54485655,57230.0,57211.0,2.6317]
[1617517061833,1.10725655,57230.0,57197.0,0.4757]
[1617517062037,2.9761,57210.0,57197.0,0.4757]
[1617517062635,1.0,57209.0,57197.0,0.4757]
[1617517062837,1.10725655,57209.0,57201.0,0.10725655]
[1617517063038,3.85725655,57209.0,57201.0,0.10725655]
[1617517065638,1.10725655,57209.0,57201.0,0.10725655]
[1617517066037,1.10725655,57209.0,57201.0,3.54825655]
[1617517066637,0.10725655,57209.0,57201.0,3.54825655]
[1617517066846,0.10725655,57209.0,57208.0,0.57345655]
[1617517067443,2.79915655,57209.0,57208.0,0.5943]
[1617517070540,0.10725655,57209.0,57208.0,0.5943]
[1617517078448,0.10725655,57209.0,57208.0,0.71447]
[1617517079448,0.10725655,57209.0,57208.0,0.58637]
[1617517079647,0.10725655,57209.0,57208.0,0.4662]
[1617517080147,1.10725655,57209.0,57208.0,0.4662]
[1617517081948,0.10725655,57209.0,57208.0,0.4662]
[1617517082349,1.27298655,57209.0,57208.0,0.4662]
[1617517082750,3.81228655,57209.0,57208.0,0.4662]
[1617517084252,2.81228655,57209.0,57208.0,0.4662]
[1617517084452,3.81228655,57209.0,57208.0,0.4662]
[1617517087653,1.27298655,57209.0,57208.0,0.4662]
[1617517088453,1.10725655,57209.0,57208.0,0.4662]
[1617517090256,0.15885655,57209.0,57208.0,0.4662]
[1617517090456,0.10725655,57209.0,57208.0,0.4662]
[1617517091658,1.10725655,57209.0,57208.0,0.4662]
[1617517092058,1.25889655,57209.0,57208.0,0.4662]
[1617517093159,4.12499655,57209.0,57208.0,0.4662]
[1617517094961,3.12499655,57209.0,57208.0,0.4662]
[1617517095162,4.12499655,57209.0,57208.0,0.4662]
[1617517097263,0.25889655,57209.0,57208.0,0.4662]
[1617517097463,0.10725655,57209.0,57208.0,0.4662]
[1617517099167,0.10725655,57215.0,57208.0,0.57345655]
[1617517099767,0.04715655,57215.0,57208.0,0.57345655]
[1617517100169,0.15776298,57233.0,57209.0,1.0525]
[1617517100370,0.15776298,57233.0,57215.0,2.70863]
[1617517100568,0.15776298,57233.0,57216.0,1.0517]
[1617517100771,0.48889958,57240.0,57216.0,1.0517]
[1617517101168,0.48889585,57241.0,57233.0,0.10725655]
[1617517101369,0.48889585,57241.0,57233.0,0.23342655]
[1617517102870,0.48898462,57242.0,57233.0,0.23342655]
[1617517103273,0.10725655,57234.0,57233.0,0.23342655]
[1617517107577,0.10725655,57234.0,57233.0,0.10725655]
[1617517108176,0.10725655,57234.0,57215.0,0.14713]
[1617517108177,0.10725655,57234.0,57215.0,1.0]
[1617517108378,4.58165655,57234.0,57211.0,0.1281]
[1617517108776,1.0,57228.0,57211.0,0.1281]
[1617517108977,1.15859,57228.0,57211.0,0.1281]
[1617517109176,1.15859,57228.0,57216.0,0.10725655]
[1617517109977,0.15859,57228.0,57216.0,0.10725655]
[1617517111179,0.10725655,57217.0,57216.0,0.10725655]
[1617517113280,0.10725655,57217.0,57210.0,0.60615655]
[1617517115082,1.0,57216.0,57210.0,0.60615655]
[1617517115281,0.10725655,57211.0,57210.0,0.60615655]
[1617517115682,0.10725655,57211.0,57210.0,0.4989]
[1617517116085,3.67675655,57211.0,57210.0,0.4989]
[1617517118885,0.48693667,57229.0,57210.0,0.63538]
[1617517119085,3.3893,57227.0,57210.0,0.63538]
[1617517119287,3.3893,57227.0,57225.0,0.10725655]
[1617517119486,1.0,57229.0,57225.0,0.10725655]
[1617517119687,0.48756146,57232.0,57210.0,0.4989]
[1617517119688,1.0,57226.0,57210.0,0.4989]
[1617517119888,3.391,57211.0,57210.0,0.4989]
[1617517121393,3.49825655,57211.0,57210.0,0.60615655]
[1617517125998,3.60355655,57211.0,57210.0,0.60615655]
[1617517126198,3.60355655,57211.0,57210.0,0.4989]
[1617517126600,4.60355655,57211.0,57210.0,0.4989]
[1617517126910,3.60355655,57211.0,57210.0,0.4989]
[1617517129902,4.60355655,57211.0,57210.0,0.4989]
[1617517132305,3.60355655,57211.0,57210.0,0.4989]
[1617517134809,4.60355655,57211.0,57210.0,0.4989]
[1617517139319,3.60355655,57211.0,57210.0,0.4989]
[1617517139523,3.49825655,57211.0,57210.0,0.4989]
[1617517140729,0.10725655,57211.0,57210.0,0.4989]
[1617517152534,1.0,57222.0,57210.0,0.4989]
[1617517152734,0.4884213,57226.0,57210.0,0.4989]
[1617517152933,0.4884213,57226.0,57210.0,3.9875]
[1617517153134,0.48846853,57227.0,57210.0,3.9875]
[1617517153535,0.48846853,57227.0,57222.0,0.21234655]
[1617517153935,0.48807706,57228.0,57222.0,0.21234655]
[1617517154235,0.48824221,57230.0,57222.0,0.21234655]
[1617517155236,1.48824221,57230.0,57222.0,0.21234655]
[1617517155436,1.0,57228.0,57222.0,0.21234655]
[1617517155637,0.10725655,57223.0,57222.0,0.21234655]
[1617517157642,0.10725655,57223.0,57222.0,0.10509]
[1617517158240,2.92745655,57223.0,57210.0,0.4989]
[1617517159545,2.8202,57223.0,57215.0,0.10725655]
[1617517159745,2.8202,57223.0,57215.0,0.24056655]
[1617517161548,2.8202,57223.0,57221.0,0.10725655]
[1617517163551,0.10725655,57222.0,57221.0,0.10725655]
[1617517171263,3.42495655,57222.0,57221.0,0.10725655]
[1617517172464,4.42495655,57222.0,57221.0,0.10725655]
[1617517173464,3.42495655,57222.0,57221.0,0.10725655]
[1617517173665,3.42495655,57222.0,57215.0,0.10725655]
[1617517174266,3.42495655,57222.0,57210.0,0.4989]
[1617517174466,1.0,57219.0,57210.0,0.4989]
[1617517174666,3.2765,57211.0,57210.0,0.4989]
[1617517174868,4.38136,57211.0,57210.0,0.4989]
[1617517175671,4.48861655,57211.0,57210.0,0.4989]
[1617517176871,4.48861655,57211.0,57210.0,0.41145633]
[1617517177371,4.48861655,57211.0,57210.0,0.21313186]
[1617517177570,1.21211655,57211.0,57210.0,0.21313186]
[1617517177770,0.21211655,57211.0,57210.0,0.21313186]
[1617517177971,3.68331655,57211.0,57210.0,0.21313186]
[1617517178171,4.16989303,57211.0,57210.0,0.21313186]
[1617517178373,4.16989303,57211.0,57208.0,0.4662]
[1617517178374,5.16989303,57211.0,57208.0,0.4662]
[1617517178775,0.48656921,57209.0,57208.0,0.4662]
[1617517178973,1.48656921,57209.0,57208.0,0.4662]
[1617517179376,0.15796435,57210.0,57208.0,0.4662]
[1617517179575,1.0,57209.0,57208.0,0.4662]
[1617517180176,4.2321,57209.0,57208.0,0.4662]
[1617517180978,4.87463843,57209.0,57208.0,0.4662]
[1617517185282,4.87463843,57209.0,57185.0,0.14]
[1617517185682,4.87463843,57209.0,57208.0,0.4]
[1617517185883,3.2321,57209.0,57208.0,0.4]
[1617517186287,4.71678363,57209.0,57208.0,0.4]
[1617517187786,4.82404018,57209.0,57208.0,0.4]
[1617517190294,4.33935655,57209.0,57208.0,0.4]
[1617517190994,4.82318442,57209.0,57208.0,0.4]
[1617517193095,4.82318442,57209.0,57208.0,0.39897592]
[1617517194999,4.33935655,57209.0,57208.0,0.39897592]
[1617517196302,4.82248116,57209.0,57208.0,0.39897592]
[1617517200807,4.33935655,57209.0,57208.0,0.39897592]
[1617517201208,4.82221743,57209.0,57208.0,0.39897592]
[1617517202613,4.33935655,57209.0,57208.0,0.39897592]
[1617517203214,4.33935655,57209.0,57208.0,0.39795187]
[1617517209821,3.33935655,57209.0,57208.0,0.39795187]
[1617517210020,4.33935655,57209.0,57208.0,0.39795187]
[1617517214725,3.33935655,57209.0,57208.0,0.39795187]
[1617517214927,4.45606655,57209.0,57208.0,0.39795187]
[1617517216026,4.93727937,57209.0,57208.0,0.39795187]
[1617517217327,5.13727937,57209.0,57208.0,0.39795187]
[1617517218129,5.13727937,57209.0,57208.0,0.39692781]
[1617517218529,4.93727937,57209.0,57208.0,0.39692781]
[1617517220332,3.93727937,57209.0,57208.0,0.39692781]
[1617517220733,4.93727937,57209.0,57208.0,0.39692781]
[1617517223535,4.45606655,57209.0,57208.0,0.39692781]
[1617517223939,3.45606655,57209.0,57208.0,0.39692781]
[1617517224235,4.93701832,57209.0,57208.0,0.39692781]
[1617517225737,5.13701832,57209.0,57208.0,0.39692781]
[1617517226338,4.93701832,57209.0,57208.0,0.39692781]
[1617517226940,5.47823875,57209.0,57208.0,0.39692781]
[1617517228143,5.96193818,57209.0,57208.0,0.39692781]
[1617517228344,5.47823875,57209.0,57208.0,0.39692781]
[1617517228543,5.47823875,57209.0,57208.0,0.39590375]
[1617517228743,5.96172863,57209.0,57208.0,0.39590375]